{"text_format":"3","workbook":"xlsx","n_sheets":2,"sheets":["Despesas","Categoria"],"not_rendered":{"defined_names":5},"read":"whole","date_system":"1900"}

{"sheet":"Despesas","index":0,"n_rows":25,"n_cols":7,"rows_kept":25,"merged":[[0,1,0,5],[1,1,1,6]]}
[null,"PREVISÃO DE DESPESAS",{"$nulls":4},{"$f":"TODAY()","v":{"v":43284,"d":"4328400.00%"}}]
[null,"Nome da Empresa"]
[null,"Despesa","Categoria","Orçamento","Real","Diferença (R$)","Diferença (%)"]
[null,"Publicidade","Funcionamento",null,null,{"$f":"IFERROR(SUM(Despesas[Orçamento]-Despesas[Real]), \"\")","v":0},{"$f":"IFERROR(SUM(Despesas[Diferença (R$)]/Despesas[Orçamento]),\"\")","v":""}]
[null,"Débitos","Funcionamento",null,null,{"$f":"IFERROR(SUM(Despesas[Orçamento]-Despesas[Real]), \"\")","v":0},{"$f":"IFERROR(SUM(Despesas[Diferença (R$)]/Despesas[Orçamento]),\"\")","v":""}]
[null,"Benefícios","Funcionamento",null,null,{"$f":"IFERROR(SUM(Despesas[Orçamento]-Despesas[Real]), \"\")","v":0},{"$f":"IFERROR(SUM(Despesas[Diferença (R$)]/Despesas[Orçamento]),\"\")","v":""}]
[null,"Fornecedores","Funcionamento",null,null,{"$f":"IFERROR(SUM(Despesas[Orçamento]-Despesas[Real]), \"\")","v":0},{"$f":"IFERROR(SUM(Despesas[Diferença (R$)]/Despesas[Orçamento]),\"\")","v":""}]
[null,"Postagem","Funcionamento",null,null,{"$f":"IFERROR(SUM(Despesas[Orçamento]-Despesas[Real]), \"\")","v":0},{"$f":"IFERROR(SUM(Despesas[Diferença (R$)]/Despesas[Orçamento]),\"\")","v":""}]
[null,"Aluguel ou hipotecas","Funcionamento",null,null,{"$f":"IFERROR(SUM(Despesas[Orçamento]-Despesas[Real]), \"\")","v":0},{"$f":"IFERROR(SUM(Despesas[Diferença (R$)]/Despesas[Orçamento]),\"\")","v":""}]
[null,"Despesas de vendas","Funcionamento",null,null,{"$f":"IFERROR(SUM(Despesas[Orçamento]-Despesas[Real]), \"\")","v":0},{"$f":"IFERROR(SUM(Despesas[Diferença (R$)]/Despesas[Orçamento]),\"\")","v":""}]
[null,"Impostos","Funcionamento",null,null,{"$f":"IFERROR(SUM(Despesas[Orçamento]-Despesas[Real]), \"\")","v":0},{"$f":"IFERROR(SUM(Despesas[Diferença (R$)]/Despesas[Orçamento]),\"\")","v":""}]
[null,"Serviços públicos","Funcionamento",null,null,{"$f":"IFERROR(SUM(Despesas[Orçamento]-Despesas[Real]), \"\")","v":0},{"$f":"IFERROR(SUM(Despesas[Diferença (R$)]/Despesas[Orçamento]),\"\")","v":""}]
[null,"Outros","Funcionamento",null,null,{"$f":"IFERROR(SUM(Despesas[Orçamento]-Despesas[Real]), \"\")","v":0},{"$f":"IFERROR(SUM(Despesas[Diferença (R$)]/Despesas[Orçamento]),\"\")","v":""}]
[null,"Seguro","Funcionamento",null,null,{"$f":"IFERROR(SUM(Despesas[Orçamento]-Despesas[Real]), \"\")","v":0},{"$f":"IFERROR(SUM(Despesas[Diferença (R$)]/Despesas[Orçamento]),\"\")","v":""}]
[null,"Juros","Funcionamento",null,null,{"$f":"IFERROR(SUM(Despesas[Orçamento]-Despesas[Real]), \"\")","v":0},{"$f":"IFERROR(SUM(Despesas[Diferença (R$)]/Despesas[Orçamento]),\"\")","v":""}]
[null,"Telefone","Funcionamento",null,null,{"$f":"IFERROR(SUM(Despesas[Orçamento]-Despesas[Real]), \"\")","v":0},{"$f":"IFERROR(SUM(Despesas[Diferença (R$)]/Despesas[Orçamento]),\"\")","v":""}]
[null,"Manutenção ou reparos","Funcionamento",null,null,{"$f":"IFERROR(SUM(Despesas[Orçamento]-Despesas[Real]), \"\")","v":0},{"$f":"IFERROR(SUM(Despesas[Diferença (R$)]/Despesas[Orçamento]),\"\")","v":""}]
[null,"Taxas legais","Funcionamento",null,null,{"$f":"IFERROR(SUM(Despesas[Orçamento]-Despesas[Real]), \"\")","v":0},{"$f":"IFERROR(SUM(Despesas[Diferença (R$)]/Despesas[Orçamento]),\"\")","v":""}]
[null,"Depreciação","Funcionamento",null,null,{"$f":"IFERROR(SUM(Despesas[Orçamento]-Despesas[Real]), \"\")","v":0},{"$f":"IFERROR(SUM(Despesas[Diferença (R$)]/Despesas[Orçamento]),\"\")","v":""}]
[null,"Remessa","Funcionamento",null,null,{"$f":"IFERROR(SUM(Despesas[Orçamento]-Despesas[Real]), \"\")","v":0},{"$f":"IFERROR(SUM(Despesas[Diferença (R$)]/Despesas[Orçamento]),\"\")","v":""}]
[null,"Armazenamento","Funcionamento",null,null,{"$f":"IFERROR(SUM(Despesas[Orçamento]-Despesas[Real]), \"\")","v":0},{"$f":"IFERROR(SUM(Despesas[Diferença (R$)]/Despesas[Orçamento]),\"\")","v":""}]
[null,"Loja","Motivo pessoal",null,null,{"$f":"IFERROR(SUM(Despesas[Orçamento]-Despesas[Real]), \"\")","v":0},{"$f":"IFERROR(SUM(Despesas[Diferença (R$)]/Despesas[Orçamento]),\"\")","v":""}]
[null,"Equipe de vendas","Motivo pessoal",null,null,{"$f":"IFERROR(SUM(Despesas[Orçamento]-Despesas[Real]), \"\")","v":0},{"$f":"IFERROR(SUM(Despesas[Diferença (R$)]/Despesas[Orçamento]),\"\")","v":""}]
[null,"Outros","Motivo pessoal",null,null,{"$f":"IFERROR(SUM(Despesas[Orçamento]-Despesas[Real]), \"\")","v":0},{"$f":"IFERROR(SUM(Despesas[Diferença (R$)]/Despesas[Orçamento]),\"\")","v":""}]
[null,"Despesas Totais",null,{"$f":"IFERROR(SUM(Despesas[Orçamento]), \"\")","v":0},{"$f":"IFERROR(SUM(Despesas[Real]), \"\")","v":0},{"$f":"IFERROR(SUM(Despesas[Diferença (R$)]), \"\")","v":0},{"$f":"IFERROR(SUM(Despesas[[#Totals],[Diferença (R$)]]/Despesas[[#Totals],[Orçamento]]),\"\")","v":""}]

{"sheet":"Categoria","index":1,"n_rows":4,"n_cols":2,"rows_kept":4}
[null,"Pesquisa de categorias"]
[null,"Categoria"]
[null,"Funcionamento"]
[null,"Motivo pessoal"]